bitfinex/quotes_ETHUSD_20250404
["timestamp","ask_amount","ask_price","bid_price","bid_amount"]
[1743733118342,18.20828,1802.7,1802.3,11.09665]
[1743733118569,20.029108,1802.7,1802.3,11.09665]
[1743733119494,5.54757,1802.6,1802.3,5.54832]
[1743733120089,5.54757,1802.6,1802.2,6.35331]
[1743733120090,5.54789,1802.5,1802.1,5.54906]
[1743733120301,5.54831,1802.4,1802.0,11.90326]
[1743733120467,5.54831,1802.4,1802.1,5.54907]
[1743733120907,5.54848,1802.3,1802.0,6.35393]
[1743733121203,5.54848,1802.3,1802.0,5.54933]
[1743733121403,7.438532,1802.4,1802.1,5.54908]
[1743733121572,1.890222,1802.4,1802.1,5.54892]
[1743733121773,1.890222,1802.4,1802.1,11.09784]
[1743733121988,0.7806,1802.4,1802.2,5.54875]
[1743733122200,14.87594,1802.6,1802.3,5.54839]
[1743733122513,9.32823,1802.6,1802.2,11.0974]
[1743733122722,14.87594,1802.6,1802.2,11.09731]
[1743733122873,11.09589,1802.5,1802.2,5.54865]
[1743733123079,5.54786,1802.5,1802.2,5.54865]
[1743733123304,11.09595,1802.5,1802.1,6.35364]
[1743733123507,5.54825,1802.4,1802.0,5.54936]
[1743733123807,5.54849,1802.3,1802.0,5.54924]
[1743733124884,7.1116,1802.2,1802.0,5.54924]
[1743733125382,6.331,1802.2,1802.0,5.54924]
[1743733125590,6.331,1802.2,1802.1,5.54908]
[1743733125978,6.331,1802.2,1802.0,5.54924]
[1743733126184,6.331,1802.2,1802.0,11.09849]
[1743733126795,6.331,1802.2,1802.0,5.54924]
[1743733127117,6.331,1802.2,1802.0,11.09848]
[1743733127415,6.331,1802.2,1802.1,5.54908]
[1743733128612,0.7806,1802.4,1802.1,5.54908]
[1743733128915,6.33,1802.3,1802.1,5.54908]
[1743733129313,6.33,1802.3,1802.0,5.54931]
[1743733129517,6.33,1802.3,1802.0,11.0986]
[1743733130695,6.33,1802.3,1802.0,5.54929]
[1743733131383,6.33,1802.3,1802.1,5.54905]
[1743733131719,6.33,1802.3,1802.0,11.09851]
[1743733132013,6.33,1802.3,1802.0,5.54925]
[1743733132327,13.83285755,1802.3,1802.0,5.54925]
[1743733132501,5.54905,1802.2,1801.8,5.5499]
[1743733132708,6.32322,1802.1,1801.8,5.5499]
[1743733133080,0.7741,1802.1,1801.8,5.5499]
[1743733133285,20.15557755,1802.3,1801.9,5.54958]
[1743733133485,20.15557755,1802.3,1802.0,5.54937]
[1743733133786,2.01555776,1802.2,1802.0,5.54937]
[1743733134115,7.56435776,1802.2,1801.9,5.54958]
[1743733135606,13.11332776,1802.2,1801.9,5.54958]
[1743733135803,5.54918,1802.1,1801.8,5.54998]
[1743733136119,5.54918,1802.1,1801.8,5.54987]
[1743733136283,6.86053378,1802.1,1801.8,5.54987]
[1743733136683,12.40980378,1802.1,1801.8,5.54987]
[1743733137316,12.40980378,1802.1,1801.7,11.10048]
[1743733137707,6.86053378,1802.1,1801.8,5.54995]
[1743733137909,5.54969,1801.9,1801.5,5.55084]
[1743733138097,17.4274,1801.8,1801.4,11.10231]
[1743733138918,5.55031,1801.7,1801.4,5.5511]
[1743733139131,5.55031,1801.7,1801.4,11.10223]
[1743733139440,11.87706,1801.8,1801.4,11.10223]
[1743733139751,13.619742,1801.8,1801.4,11.10223]
[1743733140107,1.46015338,1802.0,1801.4,6.10123]
[1743733140449,0.7741,1802.4,1802.1,5.54885]
[1743733140741,3.02827944,1802.7,1802.3,5.5484]
[1743733140742,12.64654,1802.7,1802.3,5.5484]
[1743733140894,6.812414,1802.6,1802.2,6.34801]
[1743733141089,12.360194,1802.6,1802.2,11.89662]
[1743733141328,6.812414,1802.6,1802.3,5.54843]
[1743733141490,1.264654,1802.6,1802.3,5.54834]
[1743733141817,12.64647,1802.7,1802.3,5.54846]
[1743733141993,5.54763,1802.6,1802.3,5.54846]
[1743733142592,11.09537,1802.6,1802.2,11.89676]
[1743733142794,11.09537,1802.6,1802.2,11.89667]
[1743733143012,5.54763,1802.6,1802.3,5.54841]
[1743733143319,0.7741,1802.7,1802.3,1.189635]
[1743733143521,6.325,1802.7,1802.5,5.5478]
[1743733143737,11.87233,1802.7,1802.4,5.54815]
[1743733143911,6.325,1802.7,1802.4,11.09614]
[1743733144101,6.325,1802.7,1802.4,5.54799]
[1743733144302,6.325,1802.7,1802.4,11.09598]
[1743733144637,6.325,1802.7,1802.4,5.54799]
[1743733145007,11.87225,1802.7,1802.4,5.54799]
[1743733145232,5.54755,1802.6,1802.2,11.89661]
[1743733145437,6.32165,1802.6,1802.2,11.89657]
[1743733145737,11.86939,1802.6,1802.2,6.3479]
[1743733145903,11.86943,1802.6,1802.2,6.3479]
[1743733146103,11.86943,1802.6,1802.2,5.5486]
[1743733146316,6.32165,1802.6,1802.2,5.5486]
[1743733146510,6.32165,1802.6,1802.3,11.09673]
[1743733146709,0.7741,1802.6,1802.3,11.09673]
[1743733146916,0.7741,1802.6,1802.3,11.09662]
[1743733147118,6.325,1802.7,1802.4,5.548]
[1743733147517,11.87224,1802.7,1802.4,5.548]
[1743733148033,6.325,1802.7,1802.4,11.09601]
[1743733148342,6.325,1802.7,1802.5,5.54778]
[1743733148638,6.30335,1802.8,1802.5,5.54774]
[1743733148807,6.322,1802.7,1802.5,5.54773]
[1743733149214,0.7921,1803.0,1802.5,1.16506092]
[1743733149418,12.65941,1803.0,1802.7,5.54712]
[1743733149717,12.65941,1803.0,1802.6,6.33834]
[1743733149904,12.65962,1803.0,1802.6,5.54745]
[1743733150100,5.54665,1802.9,1802.6,5.54745]
[1743733150299,12.65958,1803.0,1802.6,11.0949]
[1743733150533,1.265958,1802.9,1802.6,11.0949]
[1743733150740,1.265958,1802.9,1802.7,5.54716]
[1743733151034,1.265958,1802.9,1802.6,5.54743]
[1743733151208,12.65858,1803.0,1802.7,5.54713]
[1743733151408,12.65858,1803.0,1802.7,11.09422]
[1743733152006,7.1121,1803.0,1802.8,5.54683]
[1743733152205,6.32,1803.0,1802.8,5.54683]
[1743733152407,6.32,1803.0,1802.8,5.5468]
[1743733153633,6.32,1803.0,1802.8,11.09363]
[1743733153830,6.32,1803.0,1802.8,5.5468]
[1743733155945,7.506602,1803.0,1802.8,5.5468]
[1743733157032,7.506602,1803.0,1802.9,5.54661]
[1743733157216,9.33736,1803.4,1803.0,5.54611]
[1743733157411,6.316,1803.3,1803.0,11.0923]
[1743733157815,9.33736,1803.4,1803.1,5.54595]
[1743733158010,10.63448,1803.4,1803.1,5.54595]
[1743733158234,0.7921,1803.6,1803.3,11.09062]
[1743733158565,11.88122,1803.6,1803.2,6.33637]
[1743733158946,11.88122,1803.6,1803.2,11.88197]
[1743733159455,6.33659,1803.6,1803.3,5.54534]
[1743733159755,7.524671,1803.6,1803.3,5.54534]
[1743733160135,13.069301,1803.6,1803.3,5.54534]
[1743733160337,7.524671,1803.6,1803.3,5.54534]
[1743733161052,1.980181,1803.6,1803.3,5.54526]
[1743733161259,0.7921,1803.6,1803.3,11.09054]
[1743733161854,0.7921,1803.6,1803.3,11.09055]
[1743733162029,5.54488,1803.5,1803.1,5.54593]
[1743733162229,6.33661,1803.6,1803.2,11.09126]
[1743733162423,6.33661,1803.6,1803.2,5.54557]
[1743733162424,13.069341,1803.6,1803.2,5.54557]
[1743733162738,13.069341,1803.6,1803.2,11.09115]
[1743733162933,7.524691,1803.6,1803.2,11.09116]
[1743733163249,13.069391,1803.6,1803.2,5.54557]
[1743733163422,7.524691,1803.6,1803.2,5.54557]
[1743733163630,13.069411,1803.6,1803.3,5.54535]
[1743733163835,13.069311,1803.6,1803.3,5.54535]
[1743733164132,13.069311,1803.6,1802.8,3.02827944]
[1743733164133,5.54596,1803.2,1802.8,6.36872]
[1743733164345,6.312,1803.2,1802.9,5.5464]
[1743733164581,6.312,1803.2,1803.0,5.54618]
[1743733164736,6.312,1803.2,1803.0,5.54616]
[1743733165066,6.312,1803.2,1803.0,11.09238]
[1743733165242,6.312,1803.2,1803.0,5.54616]
[1743733165445,6.262,1803.2,1803.0,5.54616]
[1743733167236,6.262,1803.2,1802.9,11.915]
[1743733167438,6.262,1803.2,1802.9,13.1065]
[1743733167943,5.54515,1803.4,1803.0,6.09627]
[1743733168244,5.54515,1803.4,1803.1,5.5458]
[1743733168245,6.31,1803.4,1803.1,5.5458]
[1743733168444,11.85509,1803.4,1803.0,6.09626]
[1743733168654,5.54539,1803.3,1803.0,7.461815]
[1743733168858,5.5457,1803.2,1802.9,11.91494]
[1743733169071,5.5457,1803.2,1802.9,6.3684]
[1743733169269,14.58276944,1803.6,1803.0,0.82406177]
[1743733169270,6.01,1803.6,1803.0,0.82406177]
[1743733169434,17.09909,1803.6,1803.2,11.091]
[1743733169640,11.55447,1803.6,1803.2,11.091]
[1743733170074,11.55447,1803.6,1803.3,5.54522]
[1743733170477,5.54447,1803.6,1803.3,5.54522]
[1743733170976,11.85247,1803.6,1803.3,5.54522]
[1743733171176,17.3965,1803.7,1803.4,0.7686]
[1743733171383,5.54448,1803.6,1803.4,0.7686]
[1743733171884,11.0891,1803.6,1803.3,5.54522]
[1743733172045,0.795,1803.6,1803.2,7.42334]
[1743733172251,5.54485,1803.5,1803.2,1.1091]
[1743733172444,5.54485,1803.5,1803.2,6.65478]
[1743733172684,11.08981,1803.5,1803.2,5.54568]
[1743733173083,11.08981,1803.5,1803.1,11.09174]
[1743733173477,11.08981,1803.5,1803.1,11.09177]
[1743733173702,5.54485,1803.5,1803.2,5.54565]
[1743733173856,5.54549,1803.3,1802.9,5.54638]
[1743733174061,6.34049,1803.3,1803.0,5.54615]
[1743733174268,11.88606,1803.3,1803.0,5.54615]
[1743733174789,5.54569,1803.2,1802.8,11.09369]
[1743733174989,5.546,1803.1,1802.8,5.54683]
[1743733175194,5.546,1803.1,1802.8,6.73309]
[1743733175395,5.546,1803.1,1802.8,12.27986]
[1743733175762,17.39755,1803.2,1802.8,12.27986]
[1743733176594,11.85169,1803.2,1802.8,12.27986]
[1743733177195,17.39755,1803.2,1802.8,12.27979]
[1743733177497,11.85169,1803.2,1802.8,12.27979]
[1743733177982,17.39755,1803.2,1802.8,12.27979]
[1743733178191,11.85169,1803.2,1802.9,5.54661]
[1743733180697,6.34045,1803.3,1803.0,5.54618]
[1743733180994,12.64345,1803.3,1803.0,5.54618]
[1743733181220,7.098,1803.3,1802.8,5.54691]
[1743733181505,11.09282,1803.0,1802.6,11.09496]
[1743733181703,11.91562,1803.0,1802.6,5.54745]
[1743733181878,11.91562,1803.0,1802.6,11.782735]
[1743733182079,11.91562,1803.0,1802.6,11.782715]
[1743733182270,11.0936,1802.9,1802.6,0.687845]
[1743733182476,11.84898,1802.8,1802.5,11.09543]
[1743733182692,11.84898,1802.8,1802.5,11.09544]
[1743733182974,11.84898,1802.8,1802.5,5.5477]
[1743733183476,11.84898,1802.8,1802.4,5.54809]
[1743733183680,6.37014,1802.7,1802.4,5.54809]
[1743733184010,6.37014,1802.7,1802.4,6.73576]
[1743733184190,6.37014,1802.7,1802.4,12.28382]
[1743733184191,0.8228,1802.7,1802.4,12.28382]
[1743733184390,0.8228,1802.7,1802.5,5.54782]
[1743733184600,0.8228,1802.7,1802.5,5.54772]
[1743733184985,0.8228,1802.7,1802.6,5.54754]
[1743733185505,6.302,1802.8,1802.6,5.54745]
[1743733186679,13.71021583,1802.8,1802.5,5.5478]
[1743733187125,13.71021583,1802.8,1802.5,11.09551]
[1743733187314,6.302,1802.8,1802.5,5.54771]
[1743733187610,6.302,1802.8,1802.6,5.54742]
[1743733188382,8.54638,1803.0,1802.4,5.5481]
[1743733188383,0.8228,1803.1,1802.9,5.54659]
[1743733188684,6.3,1803.0,1802.9,5.54659]
[1743733188883,0.8228,1803.2,1803.0,5.54627]
[1743733189105,6.3,1803.2,1803.0,5.54627]
[1743733189299,6.3,1803.2,1802.9,5.54655]
[1743733189499,11.09101,1803.3,1802.9,5.54655]
[1743733189706,11.8457,1803.2,1802.8,11.09374]
[1743733190014,11.8457,1803.2,1802.8,12.281214]
[1743733190212,11.8457,1803.2,1802.8,12.281134]
[1743733190716,11.8457,1803.2,1802.9,5.54656]
[1743733191114,11.8457,1803.2,1802.8,5.54679]
[1743733191319,0.8228,1803.1,1802.8,5.54679]
[1743733191519,11.9152,1803.1,1802.7,11.87532]
[1743733191721,6.36892,1803.1,1802.7,6.32809]
[1743733192014,11.91514,1803.1,1802.7,11.87518]
[1743733192221,6.36892,1803.1,1802.7,11.87518]
[1743733192719,6.36892,1803.1,1802.8,5.5469]
[1743733193217,11.91508,1803.1,1802.8,5.5469]
[1743733193715,11.91508,1803.1,1802.7,11.87519]
[1743733193923,6.36892,1803.1,1802.7,11.87519]
[1743733194920,8.190388,1803.1,1802.7,5.54709]
[1743733195092,5.54656,1803.0,1802.6,5.5475]
[1743733195419,5.54676,1802.9,1802.5,6.30831]
[1743733195721,0.7606,1802.8,1802.5,5.54781]
[1743733195909,6.30763,1802.8,1802.5,5.54781]
[1743733196115,0.7606,1802.8,1802.5,11.09553]
[1743733196316,0.7606,1802.8,1802.5,12.205083]
[1743733197628,6.296,1802.7,1802.5,12.205083]
[1743733197926,6.296,1802.7,1802.5,12.205003]
[1743733198127,6.296,1802.7,1802.5,6.657273]
[1743733198624,6.296,1802.7,1802.4,5.54809]
[1743733198929,11.84326,1802.7,1802.4,5.54809]
[1743733199295,11.84326,1802.7,1802.4,11.09615]
[1743733199492,11.84326,1802.7,1802.4,11.09611]
[1743733199947,11.84326,1802.7,1802.4,5.54805]
[1743733200895,6.296,1802.7,1802.5,5.54777]
[1743733201399,6.296,1802.7,1802.4,11.09607]
[1743733201711,6.296,1802.7,1802.5,5.54783]
[1743733202117,6.296,1802.7,1802.5,5.54776]
[1743733203120,6.296,1802.7,1802.5,5.54772]
[1743733203431,0.7606,1803.0,1802.5,5.54772]
[1743733203605,11.5561,1803.1,1802.9,5.54649]
[1743733203606,12.303,1803.1,1802.9,5.54649]
[1743733203817,12.303,1803.1,1802.8,5.54686]
[1743733204017,17.84904,1803.1,1802.8,5.54686]
[1743733204333,6.293,1803.1,1802.9,5.54643]
[1743733204541,6.293,1803.2,1803.0,5.54631]
[1743733204901,6.293,1803.2,1803.0,5.54616]
[1743733205539,6.293,1803.2,1803.0,11.09231]
[1743733206535,12.302,1803.7,1803.4,5.54505]
[1743733206702,6.01,1803.7,1803.4,5.54505]
[1743733206908,17.84617,1803.7,1803.4,5.54495]
[1743733207337,12.302,1803.7,1803.4,5.54495]
[1743733207644,11.55417,1803.7,1803.4,5.54495]
[1743733207938,23.39052,1803.7,1803.4,0.7538]
[1743733208142,17.84617,1803.7,1803.3,11.09057]
[1743733208319,20.3177704,1803.7,1803.3,11.09057]
[1743733208930,14.7736004,1803.7,1803.4,5.54507]
[1743733209113,14.7736004,1803.7,1803.5,5.54473]
[1743733209314,12.302,1803.7,1803.4,5.54507]
[1743733209549,12.302,1803.7,1803.2,6.29942]
[1743733209758,5.54472,1803.6,1803.2,11.84501]
[1743733210041,5.54472,1803.6,1803.3,5.54531]
[1743733211306,17.84619,1803.7,1803.3,11.0906]
[1743733211514,12.302,1803.7,1803.4,5.54506]
[1743733212055,17.84632,1803.7,1803.3,5.54525]
[1743733212355,5.54447,1803.6,1803.3,5.54525]
[1743733213742,17.84632,1803.7,1803.3,5.54525]
[1743733213946,12.302,1803.7,1803.4,11.08974]
[1743733214541,12.302,1803.7,1803.4,5.54482]
[1743733214743,25.84834722,1803.7,1803.3,11.09066]
[1743733214950,25.84834722,1803.7,1803.3,5.54533]
[1743733215145,25.84834722,1803.7,1803.3,11.09056]
[1743733215358,0.7626,1803.6,1802.9,6.85041]
[1743733215565,5.54579,1803.2,1802.9,5.54661]
[1743733215730,11.83179,1803.2,1802.8,5.54679]
[1743733216044,6.30891,1803.0,1802.7,5.54721]
[1743733216244,6.30891,1803.0,1802.7,5.5471]
[1743733216549,0.7626,1803.0,1802.7,11.09423]
[1743733217044,0.7626,1803.0,1802.8,5.54687]
[1743733217241,19.101179,1803.2,1802.7,5.5471]
[1743733217242,13.0586,1803.2,1802.9,5.54632]
[1743733217413,12.296,1803.2,1803.0,5.54605]
[1743733217816,12.296,1803.2,1803.1,5.546]
[1743733218520,12.296,1803.2,1803.0,11.09223]
[1743733218729,12.296,1803.2,1802.9,5.54648]
[1743733218928,17.84169,1803.2,1802.9,5.54648]
[1743733219137,0.7626,1803.1,1802.8,11.09371]
[1743733219378,0.7626,1803.1,1802.8,5.54682]
[1743733219530,6.3086,1803.1,1802.8,5.54682]
[1743733219726,11.09286,1803.0,1802.6,5.54739]
[1743733219937,5.54634,1803.0,1802.6,5.54739]
[1743733220143,6.30863,1803.1,1802.7,5.54708]
[1743733220432,6.30863,1803.1,1802.8,5.54679]
[1743733221057,0.7626,1803.1,1802.8,5.54677]
[1743733222147,5.54642,1803.0,1802.7,5.54718]
[1743733222952,5.54642,1803.0,1802.7,11.09428]
[1743733223150,0.7626,1803.1,1802.8,5.54671]
[1743733223356,17.84169,1803.2,1802.9,5.54648]
[1743733223549,20.256663,1803.2,1802.9,5.54648]
[1743733223749,25.802543,1803.2,1802.8,6.30051]
[1743733223928,25.802543,1803.2,1802.8,5.54671]
[1743733224765,20.256663,1803.2,1802.8,5.54671]
[1743733224994,6.01,1803.2,1803.0,5.54609]
[1743733225269,12.292,1803.2,1803.1,5.546]
[1743733225777,12.292,1803.2,1803.1,6.3265]
[1743733226067,12.292,1803.2,1803.0,5.54609]
[1743733226279,6.3171,1803.1,1802.8,5.54683]
[1743733226474,11.86329,1803.1,1802.7,11.87482]
[1743733226682,6.3171,1803.1,1802.7,11.87482]
[1743733227043,6.3171,1803.1,1802.8,5.54692]
[1743733228086,0.7711,1803.1,1802.9,5.54646]
[1743733228378,12.292,1803.2,1802.9,11.09294]
[1743733228566,12.292,1803.2,1802.9,11.647586]
[1743733228775,12.292,1803.2,1802.9,6.101106]
[1743733228965,12.292,1803.2,1802.9,5.54646]
[1743733229167,12.292,1803.2,1802.9,11.09293]
[1743733230287,12.292,1803.2,1802.9,5.54646]
[1743733230443,17.83781,1803.2,1802.8,5.54685]
[1743733230745,5.546,1803.1,1802.8,5.54685]
[1743733231289,6.31742,1803.0,1802.7,5.54714]
[1743733231863,0.7711,1803.0,1802.8,0.24585587]
[1743733232745,0.7711,1803.0,1802.8,5.79275587]
[1743733233174,6.31741,1803.0,1802.8,0.24585587]
[1743733234873,11.86399,1803.0,1802.8,0.24585587]
[1743733235176,6.31741,1803.0,1802.6,11.09484]
[1743733235340,0.7711,1803.0,1802.9,0.23284068]
[1743733235545,0.7711,1803.0,1802.7,11.09426]
[1743733235764,0.7711,1803.0,1802.8,0.2331834]
[1743733236262,12.292,1803.2,1802.8,5.7799634]
[1743733236263,11.55574,1803.2,1802.8,5.7799634]
[1743733236474,6.277,1803.0,1802.8,5.7799634]
[1743733236647,6.277,1803.0,1802.8,6.35795974]
[1743733236848,6.277,1803.0,1802.8,6.12477634]
[1743733237047,6.277,1803.0,1802.9,0.23274415]
[1743733237447,6.277,1803.0,1802.9,5.54661]
[1743733237663,6.277,1803.0,1802.9,5.7794185]
[1743733237864,6.277,1803.0,1802.9,0.2328085]
[1743733238203,6.277,1803.0,1802.8,12.45208634]
[1743733238417,6.277,1803.0,1802.9,0.2328085]
[1743733238805,6.277,1803.0,1802.8,6.90527634]
[1743733238982,6.277,1803.0,1802.9,0.2328085]
[1743733239176,17.87268,1803.2,1803.0,5.54631]
[1743733239177,6.276,1803.1,1803.0,5.54631]
[1743733239512,6.01,1803.2,1803.1,6.3335]
[1743733239865,6.01,1803.2,1803.1,6.56507627]
[1743733240675,6.01,1803.2,1803.1,0.23157627]
[1743733242563,6.01,1803.2,1803.1,5.77757627]
[1743733242764,6.01,1803.2,1803.1,0.23157627]
[1743733243830,11.55569,1803.2,1803.1,0.23157627]
[1743733244009,11.55569,1803.2,1802.9,7.50693665]
[1743733244210,11.55569,1803.2,1803.1,0.23157627]
[1743733244211,11.09156,1803.2,1803.1,0.23157627]
[1743733244396,7.413746,1803.2,1803.0,0.23191891]
[1743733244566,7.413746,1803.2,1803.1,0.23086862]
[1743733244991,7.413746,1803.2,1802.9,5.54658]
[1743733245214,6.30459,1803.2,1803.1,0.23086862]
[1743733245408,5.546,1803.1,1803.0,0.23121126]
[1743733245624,11.0922,1803.1,1802.7,11.8819]
[1743733245815,11.0922,1803.1,1803.0,0.23121126]
[1743733246126,11.0922,1803.1,1802.3,3.0]
[1743733246127,5.54663,1802.9,1802.5,5.5477]
[1743733246286,6.30526,1803.0,1802.6,6.33481]
[1743733246614,6.30526,1803.0,1802.7,5.54723]
[1743733246814,5.54664,1802.9,1802.6,6.33481]
[1743733247432,5.54664,1802.9,1802.6,0.7875]
[1743733247590,11.09356,1802.9,1802.5,6.35974]
[1743733247786,5.54694,1802.8,1802.5,5.54774]
[1743733248934,5.54694,1802.8,1802.5,11.09547]
[1743733249223,5.54694,1802.8,1802.5,5.54773]
[1743733250429,0.7894,1802.7,1802.5,5.54773]
[1743733250722,6.27,1802.6,1802.1,0.812]
[1743733251015,0.7894,1802.4,1802.1,5.54884]
[1743733251590,0.7894,1802.4,1802.1,5.54907]
[1743733251785,0.7894,1802.4,1802.1,12.207831]
[1743733251985,6.33737,1802.5,1802.1,1.109841]
[1743733252233,5.54843,1802.4,1802.0,5.54935]
[1743733252413,11.09686,1802.4,1802.0,5.54935]
[1743733252739,11.09686,1802.4,1802.0,5.54924]
[1743733252942,5.54859,1802.3,1802.0,5.54924]
[1743733253233,5.54859,1802.3,1801.9,11.91119]
[1743733253402,5.54859,1802.3,1801.9,13.102309]
[1743733253605,6.34115,1802.2,1801.8,5.54998]
[1743733253787,6.34115,1802.2,1801.7,0.8331]
[1743733253788,6.269,1802.1,1801.7,0.8331]
[1743733253989,6.269,1802.1,1802.0,5.54938]
[1743733255538,6.269,1802.1,1801.9,11.09914]
[1743733255735,6.269,1802.1,1801.8,11.09994]
[1743733255939,6.269,1802.1,1801.9,5.54967]
[1743733256234,6.269,1802.1,1801.9,11.09922]
[1743733256944,6.269,1802.1,1801.9,5.54955]
[1743733257506,6.269,1802.1,1801.8,12.293134]
[1743733257693,6.269,1802.1,1801.8,11.09983]
[1743733257893,6.269,1802.1,1801.8,5.54986]
[1743733258089,6.269,1802.1,1801.4,3.40714558]
[1743733258090,5.54978,1801.9,1801.2,9.18827944]
[1743733258295,5.54978,1801.9,1801.1,5.60202]
[1743733258296,5.55035,1801.7,1801.4,5.55096]
[1743733258531,11.81863,1801.6,1801.3,6.38464]
[1743733258832,6.268,1801.6,1801.3,6.38452]
[1743733259190,17.36948,1801.6,1801.3,0.8331]
[1743733259426,11.81863,1801.6,1801.2,5.55168]
[1743733259623,5.55109,1801.5,1801.4,0.21868017]
[1743733259831,5.55109,1801.5,1801.2,5.55185]
[1743733260035,5.55109,1801.5,1801.4,0.21868017]
[1743733260210,13.079713,1801.6,1801.1,0.8831]
[1743733260416,13.079713,1801.6,1801.4,0.21868017]
[1743733260616,13.079713,1801.6,1801.5,5.55092]
[1743733260617,6.268,1801.6,1801.5,5.55092]
[1743733260829,6.01,1801.7,1801.6,5.55062]
[1743733261211,6.01,1801.7,1801.6,0.22210137]
[1743733261917,6.01,1801.7,1801.6,5.77272137]
[1743733263044,6.01,1801.7,1801.6,6.90507251]
[1743733263207,6.01,1801.7,1801.6,7.73817251]
[1743733263406,6.01,1801.7,1801.6,8.28817251]
[1743733264727,6.34204,1801.9,1801.6,5.77261137]
[1743733264943,5.55031,1801.7,1801.6,0.22210137]
[1743733265313,11.10091,1801.7,1801.3,6.38464]
[1743733265508,11.81668,1801.6,1801.3,6.38464]
[1743733265746,11.81668,1801.6,1801.2,5.5518]
[1743733266032,5.55126,1801.4,1801.1,11.15409]
[1743733266208,0.7923,1801.5,1801.3,5.55153]
[1743733266409,0.7923,1801.5,1801.2,5.55175]
[1743733266604,6.34325,1801.5,1801.2,5.55175]
[1743733267131,0.7923,1801.5,1801.2,11.10344]
[1743733267441,0.7923,1801.5,1801.2,5.55169]
[1743733267681,6.34327,1801.5,1801.2,5.55169]
[1743733267825,8.159265,1801.5,1801.1,5.60213]
[1743733268026,5.55131,1801.4,1801.1,5.60213]
[1743733268221,6.35535,1801.2,1801.1,0.05]
[1743733269161,12.36535,1801.2,1801.1,0.05]
[1743733269366,12.93756187,1801.2,1801.1,0.05]
[1743733274460,19.20256187,1801.2,1801.1,0.28059145]
[1743733275543,6.01,1801.4,1801.1,0.28059145]
[1743733275767,8.99137276,1801.9,1801.4,5.55123]
[1743733275768,6.264,1801.5,1801.4,5.55123]
[1743733276064,6.264,1801.5,1801.4,5.78079147]
[1743733276464,6.264,1801.5,1801.4,0.22956147]
[1743733276670,12.61842,1801.5,1801.1,0.05]
[1743733276864,12.61848,1801.5,1801.2,5.55173]
[1743733277065,7.0675,1801.5,1801.2,11.10344]
[1743733277267,6.264,1801.5,1801.3,5.55145]
[1743733277434,6.264,1801.5,1801.4,5.55123]
[1743733278142,5.55032,1801.7,1801.4,5.55123]
[1743733278346,6.263,1801.5,1801.4,5.55123]
[1743733278893,6.263,1801.6,1801.3,11.87968]
[1743733279069,6.263,1801.6,1801.4,5.55111]
[1743733280566,6.263,1801.6,1801.4,5.55109]
[1743733280986,6.263,1801.6,1801.1,5.60214]
[1743733281146,5.55135,1801.4,1801.1,0.05]
[1743733281473,11.10288,1801.4,1801.1,0.05]
[1743733281975,12.99076,1801.5,1801.1,5.60198]
[1743733282174,6.850316,1801.4,1801.1,5.60198]
[1743733283142,5.55185,1801.2,1801.1,0.05]
[1743733283347,11.81285,1801.2,1801.1,0.05]
[1743733285178,12.63785,1801.2,1801.1,0.05]
[1743733285374,14.456799,1801.2,1801.1,0.05]
[1743733285575,14.456799,1801.2,1801.1,0.26558883]
[1743733286848,8.904949,1801.2,1801.1,0.26558883]
[1743733287380,14.456799,1801.2,1801.1,0.26558883]
[1743733289468,14.456799,1801.2,1801.1,0.05]
[1743733292585,20.48507844,1801.2,1801.1,0.05]
[1743733292759,26.49507844,1801.2,1801.1,0.05]
[1743733294194,31.70057541,1801.2,1801.1,1e-05]
[1743733294487,31.70057541,1801.2,1800.1,11.98212]
[1743733294488,5.55418,1800.5,1800.1,11.98212]
[1743733294712,6.811418,1800.4,1800.1,6.42698]
[1743733294859,12.365748,1800.4,1800.2,0.22111664]
[1743733295056,5.55462,1800.3,1800.2,0.22111664]
[1743733295477,6.37962,1800.3,1800.2,0.22111664]
[1743733295688,5.55493,1800.2,1800.1,0.05]
[1743733295861,7.349385,1800.2,1800.1,0.05]
[1743733296062,7.349385,1800.2,1800.1,0.27146038]
[1743733296594,6.255,1800.5,1800.2,5.55476]
[1743733296763,5.55443,1800.4,1800.1,0.27146038]
[1743733297090,5.55443,1800.4,1800.1,5.82663038]
[1743733297291,5.55443,1800.4,1800.1,0.27146038]
[1743733297599,6.110093,1800.3,1800.1,0.27146038]
[1743733298686,5.55493,1800.2,1800.1,0.27146038]
[1743733298921,12.33153,1800.2,1800.1,0.27146038]
[1743733302098,15.33153,1800.2,1800.1,0.27146038]
[1743733302465,15.33153,1800.2,1800.1,0.05]
[1743733302788,17.81959604,1800.2,1800.1,0.05]
[1743733302997,17.81959604,1800.2,1800.1,0.27486072]
[1743733303307,18.36959604,1800.2,1800.1,0.27486072]
[1743733303479,17.81959604,1800.2,1800.1,0.27486072]
[1743733303796,17.81959604,1800.2,1800.1,0.05]
[1743733303997,24.07359604,1800.2,1800.1,0.05]
[1743733304186,24.07359604,1800.2,1800.1,0.27854993]
[1743733304597,24.07359604,1800.2,1800.1,0.05]
[1743733305004,24.07359604,1800.2,1800.1,0.27835734]
[1743733311214,24.07359604,1800.2,1800.1,0.05]